Cogmind - Beta 17.1 @@@ ROGUE MODE // 2026.08.31 @ 00:38:43 Player: Somberlain Result: Destroyed by UR-JZ5(R) with Subdweller Beam Cannon Performance ------------- Evolutions (0) 0 Regions Visited (3) 600 Robots Destroyed (11) 55 Value Destroyed (224) 224 Prototype IDs (0) 0 Alien Tech Used (0) 0 Bonus (0) 0 TOTAL SCORE: 879 Bonus ------- None Cogmind --------- Core Integrity 0/250 Matter 258/300 Energy 73/100 System Corruption 0% Temperature Cool (9) Movement Rolling (110) Location -10/Subcaves Parts ------- > --- POWER (1) -------- (None) > --- PROPULSION (2) --- Subdweller Monowheel Subdweller Monowheel > --- UTILITY (2) ------ Medium Storage Unit > --- WEAPON (2) ------- (None) > --- INVENTORY (10) --- Aluminum Leg Disposable Heat Sink Disposable Heat Sink Subdweller Optics Medium Laser Beam Cannon Flamer Scrap Shield Fragment (39) Peak State ------------ > --- POWER ------------ Ion Engine > --- PROPULSION ------- Aluminum Leg Aluminum Leg > --- UTILITY ---------- Medium Storage Unit Improved Terrain Scanner > --- WEAPON ----------- Beam Cannon Heavy Battle Rifle > --- INVENTORY -------- Aluminum Leg Medium Laser [Rating: 12] Favorites ----------- Power Ion Engine Engine Ion Engine Propulsion Aluminum Leg Leg Aluminum Leg Wheel Subdweller Monowheel Utility Improved Terrain Scanner Device Improved Terrain Scanner Storage Small Storage Unit Weapon Beam Cannon Energy Gun Medium Laser Energy Cannon Beam Cannon Ballistic Gun Heavy Battle Rifle Build | -11 -10 -10 -10 ------- Run | Yrd Mat Min Sub Slots Evolved . | . . . . Power . | . . . . Propulsion . | . . . . Utility . | . . . . Weapon . | . . . . Parts Attached 14 | 6 3 1 4 Power 1 | 1 . . . Engine 1 | 1 . . . Core . | . . . . Reactor . | . . . . Propulsion 5 | 2 1 . 2 Treads . | . . . . Leg 3 | 2 1 . . Wheel 2 | . . . 2 Hover . | . . . . Flight . | . . . . Utility 3 | 1 1 1 . Device 1 | . 1 . . Storage 2 | 1 . 1 . Processor . | . . . . Hackware . | . . . . Protection . | . . . . Artifact . | . . . . Weapon 5 | 2 1 . 2 Energy Gun 2 | 2 . . . Energy Cannon 1 | . 1 . . Ballistic Gun 2 | . . . 2 Ballistic Cannon . | . . . . Launcher . | . . . . Special Weapon . | . . . . Impact Weapon . | . . . . Slashing Weapon . | . . . . Piercing Weapon . | . . . . Special Melee Weapon . | . . . . Unidentified Prototypes . | . . . . Parts Lost 6 | . . . 6 Power 1 | . . . 1 Propulsion 2 | . . . 2 Utility 1 | . . . 1 Weapon 2 | . . . 2 Highest Loss Streak 4 | . . . 4 To Critical Strikes . | . . . . Average Backups 2 | . . 1 5 Power . | . . . . Propulsion 1 | . . 1 1 Utility . | . . . 1 Weapon . | . . . 1 Tool/Special . | . . . . Unused Backups 4 | . . . 4 Power . | . . . . Propulsion . | . . . . Utility 3 | . . . 3 Weapon 1 | . . . 1 Tool/Special . | . . . . Average Slot Usage (%) 89 | . 97 100 75 Engine 13 | . 14 14 13 Leg 25 | . 28 28 22 Device 8 | . 11 14 3 Storage 11 | . 14 14 8 Energy Gun 11 | . 24 14 . Energy Cannon 10 | . 3 14 13 Ballistic Gun 5 | . . . 13 Peak Build Rating 12 | 6 9 9 12 Average Rating 8 | 4 8 9 9 On Entrance 6 | . 6 9 9 Avg Prop Armor Cover (%) . | . . . . Naked Turns . | . . . . Heaviest Build 23 | 13 16 21 23 Greatest Support 40 | 20 20 20 40 Greatest Overweight (x) 2 | . . 1 2 Average Overweight (x) . | . . . . Largest Inventory Capacity 10 | 8 8 10 10 Average Capacity 8 | 7 8 9 7 Most Carried 10 | . 1 2 10 Average Carried 2 | . . 1 5 Final Capacity 10 | 8 8 10 10 Final Carried 8 | . 1 1 8 Class Distribution -------------------- 100% | Mutant Dominant Class ---------------- Mutant | -10/Materials Mutant | -10/Mines Mutant | -10/Subcaves Resources | -11 -10 -10 -10 ----------- Run | Yrd Mat Min Sub Matter Collected 364 | 238 42 20 64 Remotely . | . . . . Salvage Created 272 | . 110 32 130 Parts 19 | . 9 3 7 Haulers Intercepted . | . . . . Recyclers Shooed . | . . . . Parts Field Recycled . | . . . . Retrieved Matter . | . . . . Parts Self-Destructed 5 | . . . 5 Prevented . | . . . . Parts Restored . | . . . . Kills | -11 -10 -10 -10 ------- Run | Yrd Mat Min Sub Combat Hostiles Destroyed 11 | . 6 2 3 Guns 9 | . 5 2 2 Cannons 2 | . 1 . 1 Classes Destroyed 3 | . 2 . 1 Swarmer 7 | . 5 2 . Grunt 1 | . 1 . . Subdweller 3 | . . . 3 Best Kill Streak 3 | . 3 2 1 Combat Bots Only 3 | . 3 2 1 Max Kills in Single Turn 1 | . 1 1 1 Gunslinging . | . . . . Exploded . | . . . . Melee . | . . . . Uniques/NPCs Destroyed . | . . . . Combat | -11 -10 -10 -10 -------- Run | Yrd Mat Min Sub Hostile Shots Fired 92 | . 36 10 46 Missed 30 | . 11 3 16 Hits 62 | . 25 7 30 Projectile 62 | . 25 7 30 Critical Strikes 2 | . . . 2 Damage Taken 1001 | . 200 57 744 Core 272 | . 67 9 196 Absorbed by Shields . | . . . . Core Remaining (%) 100 | 100 . . . Volleys Fired 44 | . 18 3 23 Largest 2 | . 2 2 2 Hottest 110 | . 110 110 93 Shots Fired 87 | . 36 6 45 Gun 64 | . 34 3 27 Cannon 23 | . 2 3 18 Launcher . | . . . . Special . | . . . . Kinetic 27 | . . . 27 Thermal 60 | . 36 6 18 Explosive . | . . . . Electromagnetic . | . . . . Robot Hit Streak 10 | . 3 3 10 Robot Miss Streak 4 | . 4 1 3 Penetration Max . | . . . . Secondary Targets 2 | . 2 . . Max Gunslinging Chain 1 | . 1 . . Shots Hit Robots 45 | . 12 3 30 Core Hits 14 | . 6 2 6 Critical Kills . | . . . . Critical Parts Destroyed . | . . . . Critical Strikes 1 | . . . 1 Destroy 1 | . . . 1 Melee Attacks . | . . . . Impact . | . . . . Slashing . | . . . . Piercing . | . . . . Sneak Attacks . | . . . . Combat Hostiles . | . . . . Follow-up Attacks . | . . . . Damage Inflicted 742 | . 170 36 536 Guns 636 | . 152 36 448 Cannons 106 | . 18 . 88 Explosions . | . . . . Melee . | . . . . Ramming . | . . . . Kinetic 448 | . . . 448 Thermal 294 | . 170 36 88 Explosive . | . . . . Electromagnetic . | . . . . Impact . | . . . . Slashing . | . . . . Piercing . | . . . . Highest Corruption . | . . . . Average Corruption . | . . . . Corruption Purged . | . . . . Corruption Blocked . | . . . . Overload Shots . | . . . . Overflow Damage . | . . . . Projectiles . | . . . . Explosions . | . . . . Melee . | . . . . Knockbacks . | . . . . Impact . | . . . . Kinetic . | . . . . Secondary . | . . . . Self-Inflicted Damage . | . . . . Shots . | . . . . Rammed . | . . . . Targets Rammed . | . . . . Kicked . | . . . . Crushed . | . . . . Highest Temperature 240 | . 240 144 . Average Temperature 78 | . 78 76 . Received Heat Transfer 141 | . 6 . 135 Siege Activations . | . . . . Martial Activations . | . . . . Shielding Activations . | . . . . Robots Disrupted . | . . . . Combat Hostiles . | . . . . Robots Corrupted . | . . . . Combat Hostiles . | . . . . Parts Fried . | . . . . Impact Corruptions . | . . . . Robots Melted . | . . . . Combat Hostiles . | . . . . Parts Melted 3 | . . 1 2 Heat Transferred 754 | . 458 111 185 Parts Sabotaged . | . . . . Parts Stolen . | . . . . Parts Stripped . | . . . . Power Chain Reactions . | . . . . Alert | -11 -10 -10 -10 ------- Run | Yrd Mat Min Sub Maximum Alert Level . | . . . . Low Security (%) 100 | 100 100 100 . Level 1 . | . . . . Level 2 . | . . . . Level 3 . | . . . . Level 4 . | . . . . Level 5 . | . . . . High Security . | . . . . Max Security . | . . . . Peak Influence 70 | . 70 65 . Initial . | . . . . Average 14 | . 16 13 . Influence Increases 229 | . 164 65 . Destroy 0b10 Robot/C 160 | . 120 40 . Destroy Leader 30 | . 20 10 . Successful Hack 8 | . 8 . . Destroy Structure 1 | . 1 . . Lose Combat Pursuer 30 | . 15 15 . Influence Decreases 229 | . 164 65 . Time Decay 179 | . 114 65 . Purge Threat 50 | . 50 . . Squads Dispatched 1 | . 1 . . Investigation 1 | . 1 . . Extermination . | . . . . Reinforcement . | . . . . Assault . | . . . . Garrison . | . . . . Intercept . | . . . . Searches Triggered . | . . . . Construction Impeded . | . . . . Haulers Reinforced . | . . . . Active Scanning Responses . | . . . . Cargo Convoy Interrupts . | . . . . Stealth | -11 -10 -10 -10 --------- Run | Yrd Mat Min Sub Distress Signals 1 | . 1 . . Communications Jammed . | . . . . Distress Signals . | . . . . Times Spotted 22 | . 12 3 7 Peak Tracking Total 4 | . 4 3 3 Tactical Retreats 2 | . 1 1 . Traps | -11 -10 -10 -10 ------- Run | Yrd Mat Min Sub Traps Triggered . | . . . . Indirectly . | . . . . Trap Hack Attempts . | . . . . Triggered . | . . . . Disarmed . | . . . . Reprogrammed . | . . . . Reused . | . . . . Traps Extracted . | . . . . Installed . | . . . . Triggered . | . . . . Machines | -11 -10 -10 -10 ---------- Run | Yrd Mat Min Sub Machines Disabled . | . . . . Max in Single Turn . | . . . . Machines Repaired . | . . . . Machines Dismantled . | . . . . Machines Sabotaged . | . . . . Overloaded Fab Kills . | . . . . Hacking | -11 -10 -10 -10 --------- Run | Yrd Mat Min Sub Machines Accessed 4 | . 4 . . Terminals 4 | . 4 . . Fabricators . | . . . . Repair Stations . | . . . . Recycling Units . | . . . . Scanalyzers . | . . . . Garrison Access . | . . . . Total Hacks 11 | . 11 . . Successful 3 | . 3 . . Failed 8 | . 8 . . Catastrophic 2 | . 2 . . Database Lockouts . | . . . . Manual 11 | . 11 . . Terminals 11 | . 11 . . Fabricators . | . . . . Repair Stations . | . . . . Recycling Units . | . . . . Scanalyzers . | . . . . Garrison Access . | . . . . Terminal Hacks 3 | . 3 . . Branch Access Points 1 | . 1 . . Unreport Threat 1 | . 1 . . Registered Components 1 | . 1 . . Fabricator Hacks . | . . . . Repair Station Hacks . | . . . . Recycling Unit Hacks . | . . . . Scanalyzer . | . . . . Garrison Access Hacks . | . . . . Unauthorized Hacks . | . . . . Terminals . | . . . . Fabricators . | . . . . Repair Stations . | . . . . Recycling Units . | . . . . Scanalyzers . | . . . . Garrison Access . | . . . . Data Cores Recovered . | . . . . Used . | . . . . Hacking Detections 4 | . 4 . . Full Trace Events 1 | . 1 . . Feedback Events . | . . . . Feedback Blocked . | . . . . Robot Schematics Acquired . | . . . . Robots Built . | . . . . Authchips . | . . . . Time . | . . . . Total Robot Build Rating . | . . . . Part Schematics Acquired . | . . . . Parts Built . | . . . . Authchips . | . . . . Time . | . . . . Total Part Build Rating . | . . . . Part Studies Acquired . | . . . . Parts Repaired . | . . . . Time . | . . . . Parts Recycled . | . . . . Recycled Matter . | . . . . Retrieved Matter . | . . . . Retrieved Components . | . . . . Parts Scanalyzed . | . . . . Part Schematics Acquired . | . . . . Parts Damaged . | . . . . Bothacking | -11 -10 -10 -10 ------------ Run | Yrd Mat Min Sub Used RIF Installer . | . . . . Robots Hacked . | . . . . Non-combat . | . . . . Combat . | . . . . Robot Hacks Applied . | . . . . Relay Couplers Released . | . . . . Fabnet Peak Effective % . | . . . . Robots Rewired . | . . . . Allies Hacked . | . . . . Hacks Repelled . | . . . . Allies | -11 -10 -10 -10 -------- Run | Yrd Mat Min Sub Total Allies . | . . . . Largest Group . | . . . . Highest-Rated Group . | . . . . Highest-Rated Ally . | . . . . Total Orders . | . . . . Ally Attacks . | . . . . Total Damage . | . . . . Kills . | . . . . Allies Corrupted . | . . . . Allies Melted . | . . . . Intel | -11 -10 -10 -10 ------- Run | Yrd Mat Min Sub Active Infowar (turns) 736 | . 314 322 100 Terrain 736 | . 314 322 100 Robot Analysis Total . | . . . . Derelict Logs Recovered 2 | . . 1 1 Drone Launches . | . . . . Drone Recoveries . | . . . . Exploration | -11 -10 -10 -10 ------------- Run | Yrd Mat Min Sub Turns Passed 1246 | 51 377 322 496 Spaces Moved 700 | 37 264 175 224 Core 3 | 3 . . . Treads . | . . . . Legs 694 | 34 264 175 221 Wheels 3 | . . . 3 Hover . | . . . . Flight . | . . . . Fastest Speed 50 | 50 120 120 110 Average Speed 145 | 114 120 154 174 Slowest Speed 260 | 120 120 190 260 Overloaded Moves . | . . . . Propulsion Burnouts . | . . . . Robots Hopped . | . . . . Potential Cave-ins . | . . . . Cave-ins Triggered . | . . . . Exploration Rate (%) 26 | 4 49 42 12 Regions Visited 3 Branch Regions 2 Pre-discovered Areas 1 | . . 1 . Known Exits Taken 1 | . 1 . . Unknown Exits Taken 2 | 1 . 1 . Scrap Searched 1 | . . 1 . Spaces Dug . | . . . . Terrain Destroyed . | . . . . Melee . | . . . . Projectile . | . . . . AOE . | . . . . Terrain Rammed . | . . . . Walls Destroyed . | . . . . Machines Disabled . | . . . . Actions | -11 -10 -10 -10 --------- Run | Yrd Mat Min Sub Total 833 | 42 286 221 284 Wait 65 | . 2 42 21 Move 697 | 36 263 174 224 Hop . | . . . . Pick Up 9 | . . . 9 Fast Attach 7 | 6 1 . . Attach 3 | . . . 3 Detach 1 | . . . 1 Swap 6 | . 2 1 3 Drop 1 | . . 1 . Fire 44 | . 18 3 23 Melee . | . . . . Ram . | . . . . Kick . | . . . . Crush . | . . . . Escape Stasis . | . . . . Rewire . | . . . . Trap . | . . . . Miscellaneous . | . . . . Route ------- -11/Scrapyard -10/Materials (discovered 4 exits: [*Mat x2] / *Min x2) -10/Mines -10/Subcaves (discovered 1 exit: Mat) History --------- Turn | Location | Event 28 | -11/Scrapyard | Discovered new exit (range 14) 52 | -11/Scrapyard | Entered Materials 167 | -10/Materials | Discovered new exit (range 13) 267 | -10/Materials | Discovered new exit (range 15) 307 | -10/Materials | Build established: Mutant 384 | -10/Materials | Discovered new exit (range 5) 403 | -10/Materials | Identified exit to Mines 429 | -10/Materials | Entered Mines 544 | -10/Mines | Met a Derelict bent on vengeance 679 | -10/Mines | Discovered new exit (range 11) 751 | -10/Mines | Entered Subcaves 752 | -10/Subcaves | Approached by a straggling Scientist 754 | -10/Subcaves | Shifting Twisted Machinery released Hvy. Battle Rifle 864 | -10/Subcaves | Identified exit to Materials 983 | -10/Subcaves | Core integrity fell below 50% 1240 | -10/Subcaves | Core integrity fell below 20% 1247 | -10/Subcaves | Destroyed by UR-JZ5(R) with Subdweller Beam Cannon Last Messages --------------- 01003_ Acquired Scrap Shield Fragment. 1D-8BN(c): "I think it's somewhere southwest of here" 01007_ Acquired Disposable Heat Sink. 01012_ Subatomizers dissect the Sub. Machine Gun. 01014_ Acquired Sub. Optics. 01018_ Acquired Flamer. 01021_ Acquired Sub. Machine Gun. 01025_ Acquired 44 matter. 01027_ Subatomizers dissect the Sub. Monowheel. 01030_ Acquired Sub. Monowheel. 1D-8BN(c): "I think it's somewhere southwest of here" 1D-8BN(c): "I think it's somewhere west of here" 01229_ Ion Engine destroyed. 01235_ Aluminum Leg destroyed. 01241_ Hvy. Battle Rifle destroyed. 01245_ Sub. Machine Gun destroyed. Map ----- +----------------------------------------------------+ | " ## ## ## ##?#???#???????? | | "" ###### #??????????????? | | ## " ##?#### ##???????#??????? | | ?## ### #### # #???????????????? | | ??###?# ## ##???????????????? | | ??????# ## # ## ###????????????????? | | ??????# ## ### ###?????????????????? | | ??????#### ### # # ###???????????????????? | | ?????????# ## ##????????????????????? | | ?????????## ## ##???????????????????? | | ???#?#????##### #????????????????????? | | ??????????????# ### ##????????????????????? | | ??????????????#???## ###?????????????????????? | | ??????#????#???????# ##??????????????????????? | | ?????????#????#????# ##?????????????????????? | | ???????????????????## #?????????????????????? | | #?????????#???????### ##?????????????????????? | | ???????????????#??# ###????????????????????? | | ??????????????????# #????????????????????? | | ?????????????????# #### ###??????????????????? | | ?????????????????# ##?"## ##?????????????????? | | ?????????????????# #<$$?# ##????????????????? | | ?????????????????# #<$$?# ##???????????????? | | ?????????????????# #?<<## #???????????????? | | ?????????????????# ### c #???????????????? | | ??????????????????# @ ##??????????????? | | ??????????????????## ;### ##?????????????? | | ??????????????????##RR ##?## #?????????????? | | ??????????????????# ##???### ##?????????????? | | ??????????????????# #?????# #??????????????? | | ??????????????????## #?????# #??????????????? | | ??????????????????? ##?????####??????????????? | | ??????????????????# "????????????????????????? | | ??????????????????## #????????????????????????? | | ??????????????????? #????????????????????????? | | ??????????????????? #????????????????????????? | | ??????????????????? #????????????????????????? | | ?????????????????? ?????????????????????????? | | ??????????????????# ?????????????????????????? | | ?????????????????? ?????????????????????????? | | ??????????????????# ?????????????????????????? | | ??????????????????# ?????????????????????????? | | ??????????????????# #?????????????????????????? | | ??????????????????? ??????????????????????????? | | ???????????????????????????????????????????????? | | ???????????????????????????????????????????????? | | ???????????????????????????????????????????????? | | ???????????????????????????????????????????????? | | ???????????????????????????????????????????????? | | ???????????????????????????????????????????????? | +----------------------------------------------------+ Best States ------------- Heat Dissipation 25 Energy Generation 10 Energy Capacity 250 Matter Stores 300 Matter Capacity 300 Sight Range 16 Terrain Scan Range 16 Terrain Scan Density 10 Evasion (%) 55 Item Schematics ----------------- None Robot Schematics ------------------ None Fabricated ------------ Nothing Repaired ---------- Nothing Studied --------- None Alien Tech Used ----------------- None Achievements -------------- None Challenges ------------ None Game ------ Seed ScrapoidStasisComputer Manual? 0 Play Time 00:08:51 Cumulative 42.9 hours Start 2026.08.31 @ 00:32:04 End 2026.08.31 @ 00:38:43 Sessions 1 Manual Loads 0 Difficulty Rogue Special Mode None Game No. 64 Rogue 64 Adventurer 0 Explorer 0 Win Type - Total 0 Types 0/0/0/0/0/0/0/0/0/0 Lore% 31 Gallery% 31 Achievement% 29 Wizard Run 0 Options --------- Layout 1 ASCII 0 Keyboard 0 Movement Mouse Keybinds 0 Fullscreen 2 Font 24/Smallcaps Map View 50x35 Zoom Use 0% Tactical HUD 1 Map Filters NONE Filters NONE Steam 1 RUN: 1f3d0c4e-3b0b-48dc-9a87-9b8cf78cc8b1